bitfinex-derivatives/quotes_BTCF0:USTF0_20251011
["timestamp","ask_amount","ask_price","bid_price","bid_amount"]
[1760167296159,0.37428473,110880.0,110850.0,0.01361]
[1760167296355,0.37428473,110880.0,110850.0,0.4745296]
[1760167296560,0.36964334,110880.0,110870.0,0.01361]
[1760167296859,0.00876861,110860.0,110840.0,0.01361]
[1760167297053,0.36088888,110850.0,110840.0,0.1237397]
[1760167297256,0.36088888,110850.0,110820.0,0.01369291]
[1760167297257,0.00876861,110840.0,110820.0,0.46463881]
[1760167297557,0.36956861,110840.0,110830.0,0.1037479]
[1760167297757,0.36956861,110840.0,110820.0,0.10383371]
[1760167298066,7.204e-05,110830.0,110820.0,0.03369291]
[1760167298252,0.8643479,110830.0,110790.0,0.37441]
[1760167298454,0.36956861,110810.0,110790.0,0.02361]
[1760167298653,0.37429888,110800.0,110760.0,0.01361]
[1760167298956,0.00876861,110770.0,110760.0,0.03361]
[1760167299259,7.792e-05,110770.0,110760.0,0.1238048]
[1760167299462,0.36956861,110790.0,110780.0,0.1018385]
[1760167299657,0.3608,110810.0,110800.0,0.0901622]
[1760167299861,0.3608,110810.0,110800.0,0.1250022]
[1760167300063,0.3608,110810.0,110780.0,0.37246]
[1760167300262,0.3608,110810.0,110780.0,0.40246]
[1760167300564,0.36956861,110810.0,110800.0,0.0901622]
[1760167300759,0.36956861,110820.0,110810.0,0.0901541]
[1760167301062,0.01272,110840.0,110810.0,0.0901541]
[1760167301063,0.00876861,110840.0,110830.0,0.0901378]
[1760167301261,0.36956861,110840.0,110830.0,0.1301378]
[1760167301463,0.00876861,110840.0,110830.0,0.8909378]
[1760167301757,0.36956861,110860.0,110850.0,0.0901216]
[1760167301952,0.00876861,110870.0,110860.0,0.0901134]
[1760167302153,0.00876861,110870.0,110860.0,0.5238134]
[1760167302359,0.00876861,110870.0,110860.0,0.1630134]
[1760167302565,0.00876861,110870.0,110860.0,0.5630134]
[1760167302760,1.86956861,110890.0,110880.0,0.0900972]
[1760167302962,1.50876861,110890.0,110880.0,0.1400972]
[1760167303160,1.5,110890.0,110880.0,0.1400972]
[1760167303360,1.8608,110890.0,110880.0,0.1400972]
[1760167303562,1.5,110890.0,110880.0,0.8643446]
[1760167303862,1.8608,110890.0,110880.0,0.9035446]
[1760167304260,0.37352,110980.0,110940.0,0.1029485]
[1760167304455,0.3584374,110970.0,110940.0,0.3608]
[1760167304661,1.5,110940.0,110930.0,0.3608]
[1760167305064,1.5,110940.0,110930.0,0.4908566]
[1760167305966,1.9,110940.0,110930.0,0.3608]
[1760167306164,1.91272,110940.0,110930.0,0.0044]
[1760167306562,1.5,110940.0,110930.0,0.3652]
[1760167306960,2.3635685,110940.0,110930.0,0.0044]
[1760167307257,0.0900601,110930.0,110900.0,0.3608]
[1760167307567,0.4635874,110920.0,110890.0,0.3608]
[1760167307957,0.41272,110920.0,110900.0,0.3608]
[1760167308261,0.3608,110930.0,110900.0,0.3708]
[1760167308462,1.8608,110940.0,110920.0,0.0900648]
[1760167308668,1.5,110940.0,110930.0,0.0900566]
[1760167308863,1.5,110940.0,110930.0,0.01]
[1760167309568,1.5,110940.0,110930.0,0.4608566]
[1760167309763,1.5,110940.0,110930.0,0.819294]
[1760167309962,1.5,110940.0,110930.0,1.219294]
[1760167310358,0.00681,110950.0,110940.0,0.0900485]
[1760167310562,0.00681,110950.0,110940.0,0.5708485]
[1760167310765,0.00681,110950.0,110940.0,0.9292859]
[1760167310966,0.37352,111000.0,110970.0,0.0900235]
[1760167311162,0.37352,111020.0,110990.0,0.4508079]
[1760167311364,0.37352,111020.0,110990.0,0.4608]
[1760167311762,1.5,111010.0,110990.0,0.5508025]
[1760167311966,1.5,111010.0,111000.0,0.4507998]
[1760167312166,1.5,111010.0,111000.0,0.4907998]
[1760167314672,1.5,111010.0,111000.0,1.2492372]
[1760167315068,1.5,111010.0,111000.0,0.8907998]
[1760167315571,1.51810422,111010.0,111000.0,0.8907998]
[1760167315872,1.5,111010.0,111000.0,0.8907998]
[1760167316971,1.5,111010.0,111000.0,0.4907998]
[1760167317173,1.5,111010.0,111000.0,0.8907998]
[1760167317866,1.5,111010.0,111000.0,0.4907998]
[1760167318465,1.5,111010.0,111000.0,0.8907998]
[1760167319073,1.5,111010.0,111000.0,0.4907998]
[1760167320279,0.01810422,111000.0,110990.0,0.4508063]
[1760167320574,0.01810422,111000.0,110990.0,0.4008]
[1760167320976,0.41810422,111000.0,110990.0,0.4008]
[1760167321173,0.41810422,111000.0,110990.0,0.1300079]
[1760167321369,1.5,111010.0,110990.0,1.2492453]
[1760167321577,1.5,111010.0,111000.0,0.4507997]
[1760167321771,0.01810422,111010.0,111000.0,0.9807997]
[1760167321967,0.3608,111050.0,111030.0,0.0899688]
[1760167321968,0.01810422,111040.0,111030.0,0.0899688]
[1760167322172,0.01810422,111040.0,111030.0,0.1299688]
[1760167322575,0.01810422,111040.0,111020.0,0.8092141]
[1760167322773,1.5,111030.0,111020.0,0.4808]
[1760167323076,1.5,111030.0,111020.0,0.5707835]
[1760167323274,1.5,111030.0,110990.0,0.19]
[1760167323275,0.01810422,111020.0,111000.0,0.0899926]
[1760167323469,0.01810422,111020.0,111000.0,0.5307964]
[1760167323669,0.01810422,111020.0,111000.0,0.3608]
[1760167323876,0.46888792,111020.0,111000.0,0.01]
[1760167324878,0.01810422,111020.0,111010.0,0.4507917]
[1760167325078,0.01810422,111020.0,111010.0,0.4907917]
[1760167325272,1.51810422,111030.0,111020.0,0.0899836]
[1760167325482,1.51810422,111030.0,111020.0,0.03]
[1760167325675,2.00807972,111030.0,111010.0,0.3608]
[1760167325876,0.01810422,111010.0,111000.0,0.7192374]
[1760167326071,0.01810422,111010.0,111000.0,0.01]
[1760167326277,0.50809592,111010.0,111000.0,0.01]
[1760167326478,0.41810422,111010.0,111000.0,0.01]
[1760167326680,0.50809592,111010.0,110990.0,0.3608]
[1760167326874,0.01810422,111010.0,110990.0,0.05]
[1760167327080,0.0899998,111000.0,110990.0,0.05]
[1760167327385,0.01810422,110990.0,110970.0,0.4508227]
[1760167327586,0.50811322,110990.0,110970.0,0.3708]
[1760167327884,0.01810422,110990.0,110970.0,0.4608238]
[1760167328382,0.10811222,110990.0,110970.0,0.4608238]
[1760167328585,0.450804,111000.0,110970.0,0.4608238]
[1760167328976,0.3608,111000.0,110970.0,0.3708]
[1760167329185,0.450792,111010.0,110990.0,0.3608]
[1760167329482,0.450792,111010.0,110990.0,0.4008]
[1760167329679,0.3608,111020.0,111000.0,0.0899998]
[1760167329879,0.4507876,111020.0,111000.0,0.04]
[1760167330080,0.3608,111010.0,110990.0,0.090005]
[1760167330280,0.3608,111010.0,110990.0,0.520805]
[1760167330482,0.4507876,111020.0,110990.0,0.520805]
[1760167330685,0.4507876,111020.0,111000.0,0.0899991]
[1760167330878,0.4507876,111020.0,111000.0,0.02]
[1760167331085,0.3608,111010.0,111000.0,0.02]
[1760167331484,0.0900079,110990.0,110980.0,0.3608]
[1760167331789,0.0900323,110960.0,110940.0,0.3608]
[1760167331982,0.4508361,110960.0,110940.0,0.4708]
[1760167332179,0.0900537,110940.0,110910.0,0.4509718]
[1760167332386,0.4508336,110960.0,110930.0,0.4508565]
[1760167332679,0.3608,110960.0,110930.0,0.490856]
[1760167332886,0.450808,110990.0,110950.0,0.8092742]
[1760167333089,0.0900162,110980.0,110950.0,0.3984374]
[1760167333278,0.0900323,110960.0,110940.0,0.3608]
[1760167333479,0.0900485,110950.0,110930.0,0.3608]
[1760167333689,0.0900485,110950.0,110930.0,0.3808]
[1760167333889,0.0900485,110940.0,110930.0,0.3608]
[1760167334086,0.490042,110950.0,110930.0,0.3708]
[1760167334289,0.7608,110940.0,110910.0,0.0001032]
[1760167334490,0.0900648,110920.0,110910.0,0.0001032]
[1760167334690,0.4508648,110920.0,110910.0,0.0001032]
[1760167334893,0.3608,110920.0,110910.0,0.0101032]
[1760167335093,0.3608,110920.0,110910.0,0.0001032]
[1760167335289,0.3608,110920.0,110910.0,0.0201032]
[1760167335493,0.3608,110930.0,110910.0,0.4709754]
[1760167335691,0.0900513,110940.0,110910.0,0.3809032]
[1760167335888,0.3608,110940.0,110910.0,0.470976]
[1760167336091,0.4508487,110940.0,110910.0,0.1101757]
[1760167336289,0.4508571,110930.0,110910.0,0.0001032]
[1760167336492,0.4508567,110930.0,110910.0,0.0001032]
[1760167336692,0.4508648,110920.0,110910.0,0.0001032]
[1760167337097,0.8508648,110920.0,110910.0,0.0001032]
[1760167337297,1.2093022,110920.0,110910.0,0.0001032]
[1760167337596,1.2734613,110920.0,110910.0,0.0001032]
[1760167337796,0.0900828,110900.0,110870.0,0.4509037]
[1760167338099,0.4508828,110900.0,110870.0,0.4809037]
[1760167338490,0.0900675,110920.0,110890.0,0.3608]
[1760167338688,0.3608,110920.0,110900.0,0.5126712]
[1760167338991,7.395e-05,110910.0,110900.0,0.9208809]
[1760167339191,1e-08,110910.0,110900.0,1.3042774]
[1760167339592,1e-08,110910.0,110900.0,1.7042774]
[1760167340897,1e-08,110910.0,110900.0,1.3042774]
[1760167341098,1e-08,110910.0,110900.0,1.2542774]
[1760167341294,1e-08,110910.0,110900.0,1.2542775]
[1760167341500,1e-08,110910.0,110900.0,1.6542775]
[1760167342193,1e-08,110910.0,110900.0,1.2542775]
[1760167342595,1e-08,110910.0,110900.0,1.6542775]
[1760167343295,0.37428,110980.0,110950.0,0.0900404]
[1760167343497,0.0900242,110970.0,110940.0,0.7833965]
[1760167343795,0.01348,110960.0,110940.0,0.5526444]
[1760167344100,0.4643134,110960.0,110940.0,0.4625965]
[1760167344299,0.01348,110960.0,110940.0,0.4008]
[1760167344500,4.021e-05,110950.0,110940.0,0.4908476]
[1760167344803,4.021e-05,110950.0,110940.0,0.04]
[1760167344997,4.021e-05,110950.0,110940.0,0.4008]
[1760167345196,0.40004021,110950.0,110940.0,0.04]
[1760167345699,0.40004021,110950.0,110920.0,0.7833965]
[1760167345900,0.01348,110940.0,110920.0,0.8734612]
[1760167346101,0.01348,110940.0,110930.0,0.3608]
[1760167346400,0.01348,110940.0,110930.0,0.4708]
[1760167346802,0.01348,110940.0,110930.0,0.11]
[1760167347102,0.01348,110940.0,110930.0,0.5608566]
[1760167347397,0.36084021,110950.0,110940.0,0.0900485]
[1760167347398,4.021e-05,110950.0,110940.0,0.0900485]
[1760167347601,0.01814443,110950.0,110940.0,0.883445]
[1760167347798,0.01814443,110950.0,110940.0,1.2433965]
[1760167347998,4.021e-05,110950.0,110940.0,1.313445]
[1760167348297,0.01814443,110950.0,110940.0,0.4508485]
[1760167348503,0.01814443,110950.0,110940.0,1.333445]
[1760167348802,4.021e-05,110950.0,110940.0,1.333445]
[1760167349298,0.01810422,110970.0,110960.0,0.0900323]
[1760167349497,0.01348,111000.0,110970.0,0.0900242]
[1760167349698,0.01810422,111020.0,110990.0,1.6842371]
[1760167349894,1.5,111030.0,111020.0,0.0899837]
[1760167350100,1.5,111030.0,111020.0,0.9233802]
[1760167350300,0.01810422,111040.0,111030.0,0.0899756]
[1760167350495,0.01348,111060.0,111040.0,0.0899641]
[1760167350701,0.01348,111080.0,111060.0,0.089951]
[1760167351004,1.5,111070.0,111060.0,0.9233475]
[1760167351195,1.51810422,111070.0,111060.0,0.9233475]
[1760167351396,1.51810422,111070.0,111060.0,0.4108]
[1760167351601,1.51810422,111070.0,111060.0,0.9007512]
[1760167352004,1.51810422,111070.0,111060.0,1.25071459]
[1760167352205,0.01810422,111090.0,111060.0,0.5007456]
[1760167352400,0.01348,111080.0,111060.0,0.5007456]
[1760167352601,0.01348,111080.0,111070.0,0.3608]
[1760167352904,0.01810422,111070.0,111060.0,0.3608]
[1760167353107,0.41810422,111070.0,111060.0,0.4308]
[1760167353303,0.01810422,111070.0,111060.0,0.4308]
[1760167353794,0.01810422,111070.0,111060.0,0.5207512]
[1760167354001,0.01348,111080.0,111060.0,0.4308]
[1760167354195,0.01348,111080.0,111070.0,0.3608]
[1760167354395,0.01810422,111080.0,111070.0,0.4008]
[1760167354601,0.01348,111100.0,111080.0,0.0899309]
[1760167354803,0.01348,111100.0,111080.0,0.4208]
[1760167355002,0.01348,111100.0,111090.0,0.450727]
[1760167355203,0.01348,111100.0,111090.0,0.4008]
[1760167355599,0.41348,111100.0,111090.0,0.04]
[1760167355805,0.01348,111120.0,111100.0,0.089916]
[1760167356005,0.01348,111120.0,111100.0,0.06]
[1760167356206,0.01348,111120.0,111110.0,0.3608]
[1760167356402,0.01348,111120.0,111110.0,0.5008]
[1760167356403,0.00068,111120.0,111110.0,0.5008]
[1760167356703,0.01348,111160.0,111120.0,0.0899027]
[1760167356904,0.01348,111140.0,111130.0,0.3608]
[1760167357305,0.5033665,111140.0,111120.0,0.3608]
[1760167357500,0.1033844,111120.0,111100.0,0.3608]
[1760167357700,0.4641827,111120.0,111100.0,0.3608]
[1760167357899,0.4899108,111110.0,111100.0,0.3608]
[1760167358610,0.01348,111080.0,111070.0,0.3608]
[1760167358903,0.103415,111080.0,111070.0,0.04]
[1760167359105,0.01348,111080.0,111070.0,0.03]
[1760167359503,0.01348,111080.0,111070.0,0.4807431]
[1760167359711,0.01348,111100.0,111070.0,0.8807406]
[1760167359904,0.01348,111100.0,111080.0,0.3608]
[1760167360104,0.01348,111100.0,111090.0,0.450727]
[1760167360409,0.01348,111120.0,111100.0,0.0899133]
[1760167360609,0.01348,111140.0,111110.0,0.8115108]
[1760167360910,0.01348,111140.0,111120.0,0.4507021]
[1760167361204,0.37428,111140.0,111120.0,0.4807021]
[1760167361404,0.01348,111160.0,111140.0,0.0898854]
[1760167361610,0.01348,111160.0,111150.0,0.3608]
[1760167361806,0.01348,111160.0,111150.0,0.3908]
[1760167362205,0.01348,111180.0,111150.0,0.4806784]
[1760167362407,0.4641373,111180.0,111160.0,0.3608]
[1760167362602,0.4641373,111180.0,111160.0,0.03]
[1760167362603,0.4506622,111170.0,111160.0,0.03]
[1760167362814,0.37428,111180.0,111160.0,0.3908]
[1760167363309,0.01348,111180.0,111160.0,0.3908]
[1760167363711,0.1033342,111180.0,111160.0,0.3908]
[1760167363908,0.01348,111180.0,111170.0,0.3608]
[1760167364211,0.01348,111180.0,111170.0,0.4806622]
[1760167364809,0.01348,111180.0,111170.0,0.3908]
[1760167365205,0.01348,111200.0,111170.0,0.4806621]
[1760167365412,0.01348,111200.0,111180.0,0.3608]
[1760167365613,0.01348,111200.0,111180.0,0.4108]
[1760167366213,0.103319,111200.0,111180.0,0.4108]
[1760167366512,0.01348,111200.0,111180.0,0.4108]
[1760167366705,0.1033181,111200.0,111180.0,0.4108]
[1760167367412,0.450646,111190.0,111180.0,0.05]
[1760167367611,0.01278,111180.0,111160.0,0.4506696]
[1760167367812,0.01278,111180.0,111160.0,0.5506696]
[1760167368006,0.01278,111180.0,111160.0,0.4608]
[1760167368208,0.5026348,111180.0,111160.0,0.4608]
[1760167368409,0.77358,111180.0,111160.0,0.4608]
[1760167368615,0.01278,111180.0,111160.0,0.5506692]
[1760167368914,0.01278,111180.0,111170.0,0.3608]
[1760167369110,0.01278,111180.0,111170.0,0.02]
[1760167369312,0.77358,111180.0,111170.0,0.02]
[1760167369507,0.01278,111180.0,111170.0,0.02]
[1760167369711,0.01278,111180.0,111170.0,0.4706622]
[1760167369906,0.01348,111200.0,111180.0,0.0898485]
[1760167370108,0.01348,111200.0,111180.0,0.5306511]
[1760167370409,0.01348,111200.0,111190.0,0.3608]
[1760167370607,0.01348,111200.0,111190.0,0.490646]
[1760167370914,0.01348,111200.0,111190.0,0.851446]
[1760167371608,0.0131,111220.0,111200.0,0.0898371]
[1760167371915,1.5,111210.0,111200.0,0.4906371]
[1760167372113,1.5,111210.0,111200.0,0.8514371]
[1760167372511,1.5,111210.0,111200.0,1.2514371]
[1760167372908,1.5,111210.0,111200.0,0.8906371]
[1760167377118,1.5,111210.0,111200.0,0.9034371]
[1760167377321,0.0131,111240.0,111200.0,0.91742723]
[1760167377520,0.0131,111240.0,111230.0,0.4506137]
[1760167377714,0.0131,111240.0,111230.0,0.42479013]
[1760167377920,0.0131,111240.0,111230.0,0.06399013]
[1760167378316,0.0131,111240.0,111230.0,0.51460383]
[1760167379314,0.0131,111240.0,111230.0,0.42479013]
[1760167379712,0.4131,111240.0,111230.0,0.06399013]
[1760167380113,0.1029056,111240.0,111230.0,0.06399013]
[1760167380319,0.0131,111240.0,111230.0,0.5006137]
[1760167380520,0.01278,111260.0,111250.0,0.0897976]
[1760167380813,0.01278,111280.0,111250.0,0.9313929]
[1760167381019,0.01278,111280.0,111250.0,0.5705976]
[1760167381020,0.01278,111260.0,111250.0,0.5705976]
[1760167381219,0.01278,111260.0,111250.0,0.4808]
[1760167381423,0.01278,111260.0,111250.0,0.5705976]
[1760167381618,0.01278,111260.0,111250.0,0.4808]
[1760167381820,0.41278,111260.0,111250.0,0.4808]
[1760167382314,0.5025695,111260.0,111250.0,0.3608]
[1760167382516,0.01278,111240.0,111230.0,0.3608]
[1760167382720,0.01278,111240.0,111230.0,0.01]
[1760167382914,0.8633856,111240.0,111230.0,0.02296225]
[1760167383119,0.5025856,111240.0,111230.0,0.02296225]
[1760167383415,0.8633856,111240.0,111230.0,0.02296225]
[1760167383619,0.1025856,111240.0,111230.0,0.02296225]
[1760167383820,0.01278,111240.0,111230.0,0.4606137]
[1760167384120,1.5898137,111230.0,111220.0,0.3608]
[1760167384323,1.5,111230.0,111220.0,0.04299149]
[1760167384525,1.5898136,111230.0,111220.0,0.40379149]
[1760167384824,2.3506136,111230.0,111220.0,0.04299149]
[1760167385124,1.5,111230.0,111220.0,0.49361319]
[1760167385521,1.5,111230.0,111220.0,0.4806217]
[1760167385722,1.5,111230.0,111220.0,0.8806217]
[1760167386426,1.5,111230.0,111220.0,0.4806217]
[1760167386615,1.5,111230.0,111220.0,0.3908]
[1760167387217,1.5,111230.0,111220.0,0.40376326]
[1760167387416,1.5898136,111230.0,111220.0,0.40376326]
[1760167387630,1.5898136,111230.0,111220.0,0.04296326]
[1760167387816,1.9898136,111230.0,111220.0,0.01296326]
[1760167388223,0.1026017,111220.0,111210.0,0.3608]
[1760167388417,0.5026017,111220.0,111210.0,0.3608]
[1760167388623,0.1026017,111220.0,111210.0,0.3608]
[1760167388824,0.5026017,111220.0,111210.0,0.3608]
[1760167389128,0.52264267,111220.0,111210.0,0.3608]
[1760167389326,0.0898297,111210.0,111200.0,0.3608]
[1760167389622,0.01278,111210.0,111200.0,0.3708]
[1760167390030,0.01278,111230.0,111220.0,0.0898217]
[1760167390220,0.03681629,111230.0,111220.0,0.5706217]
[1760167390425,0.01278,111240.0,111220.0,0.9314217]
[1760167390627,0.01278,111240.0,111230.0,0.4506136]
[1760167390829,0.01278,111240.0,111230.0,0.3908]
[1760167391123,0.01278,111240.0,111230.0,0.4806136]
[1760167391328,0.01278,111240.0,111230.0,0.03]
[1760167391831,0.01278,111240.0,111230.0,0.4806136]
[1760167392223,0.1025855,111240.0,111230.0,0.03]
[1760167392423,0.1025723,111260.0,111240.0,0.0898029]
[1760167392624,0.1266522,111260.0,111240.0,0.4208]
[1760167392931,1.5,111250.0,111240.0,0.510605]
[1760167393132,1.5240828,111250.0,111240.0,0.4208]
[1760167393525,1.5240828,111250.0,111240.0,0.5106055]
[1760167393727,1.5368628,111250.0,111240.0,0.5106055]
[1760167394027,1.51278,111250.0,111240.0,0.5106055]
[1760167394230,1.51278,111250.0,111240.0,0.4208]
[1760167394430,1.53688071,111250.0,111240.0,0.4208]
[1760167394625,1.51278,111250.0,111240.0,0.5106055]
[1760167395231,1.51278,111250.0,111240.0,0.4208]
[1760167395424,1.53688441,111250.0,111240.0,0.4208]
[1760167395829,1.51278,111250.0,111240.0,0.510605]
[1760167396335,1.5,111250.0,111240.0,0.510605]
[1760167396534,1.5,111250.0,111240.0,0.910605]
[1760167396830,1.5,111250.0,111240.0,0.917095]
[1760167400133,0.0127,111300.0,111280.0,0.0897762]
[1760167400334,0.0127,111300.0,111290.0,0.7216]
[1760167400732,0.0127,111280.0,111270.0,0.0897829]
[1760167400939,0.0127,111280.0,111270.0,0.05]
[1760167401130,0.7735,111280.0,111270.0,0.05]
[1760167401332,0.7974806,111280.0,111270.0,0.05]
[1760167401532,0.8872587,111280.0,111270.0,0.05]
[1760167401738,0.8872587,111280.0,111250.0,0.3608]
[1760167401932,0.4872587,111280.0,111250.0,0.3808]
[1760167402134,1.9505866,111270.0,111250.0,0.3608]
[1760167402338,2.3745672,111270.0,111250.0,0.3608]
[1760167402637,1.9745682,111270.0,111250.0,0.3608]
[1760167403432,1.8847806,111270.0,111250.0,0.3608]
[1760167403840,1.8847806,111270.0,111250.0,0.5008]
[1760167404242,1.9745676,111270.0,111250.0,0.3608]
[1760167404433,2.00595027,111270.0,111250.0,0.3608]
[1760167405239,1.9745676,111270.0,111250.0,0.4908]
[1760167405538,1.9745676,111270.0,111250.0,0.13]
[1760167405740,0.0127,111260.0,111250.0,0.13]
[1760167405942,0.0366806,111260.0,111250.0,0.13]
[1760167406343,0.0366806,111260.0,111250.0,0.5806027]
[1760167406842,0.0366806,111260.0,111250.0,0.2198027]
[1760167407041,0.0366806,111260.0,111250.0,0.5806027]
[1760167407737,0.0239806,111260.0,111250.0,0.9870927]
[1760167407937,0.0127,111280.0,111270.0,0.0897865]
[1760167408143,0.0127,111280.0,111270.0,0.8213865]
[1760167408339,0.0127,111280.0,111270.0,0.4605865]
[1760167408540,0.03669696,111280.0,111270.0,0.4605865]
[1760167408740,0.0127,111300.0,111270.0,0.4605865]
[1760167408741,0.0127,111310.0,111300.0,0.0897623]
[1760167408942,0.03669838,111320.0,111300.0,0.8613623]
[1760167409239,0.03669838,111320.0,111310.0,0.3608]
[1760167409440,0.03669838,111320.0,111310.0,0.3908]
[1760167409647,0.03669838,111320.0,111310.0,0.4805543]
[1760167409841,0.03669838,111320.0,111310.0,0.8805543]
[1760167410140,0.00050588,111320.0,111310.0,0.8805543]
[1760167410340,0.0127,111330.0,111310.0,0.8805503]
[1760167410547,0.0127,111330.0,111320.0,0.4505462]
[1760167410842,0.0127,111330.0,111320.0,0.5005462]
[1760167411239,0.0127,111340.0,111330.0,0.0897381]
[1760167411539,0.0127,111340.0,111330.0,0.1997381]
[1760167411746,0.0127,111340.0,111330.0,0.5605381]
[1760167412450,0.0127,111350.0,111340.0,0.0897301]
[1760167412749,0.0127,111350.0,111340.0,0.1197301]
[1760167412945,0.0127,111350.0,111340.0,0.4805301]
[1760167413244,0.0127,111380.0,111340.0,0.7908]
[1760167413544,0.1327,111380.0,111360.0,0.0897131]
[1760167413748,0.0127,111370.0,111360.0,0.03]
[1760167413950,0.3735,111370.0,111360.0,0.03]
[1760167414448,0.0127,111370.0,111360.0,0.480514]
[1760167414649,0.0127,111370.0,111360.0,0.3908]
[1760167414944,0.0127,111360.0,111340.0,0.4505257]
[1760167415144,0.0127,111350.0,111340.0,0.4505257]
[1760167415348,0.0127,111360.0,111350.0,0.0897221]
[1760167415548,0.0127,111360.0,111350.0,0.5205221]
[1760167415748,0.0127,111360.0,111350.0,0.9205221]
[1760167415949,0.0127,111360.0,111350.0,0.5205221]
[1760167416247,0.0127,111360.0,111350.0,0.4705221]
[1760167417050,0.0127,111360.0,111350.0,0.4505221]
[1760167417247,0.5024141,111360.0,111350.0,0.02]
[1760167417447,0.0127,111340.0,111330.0,0.4505382]
[1760167417650,0.0127,111340.0,111330.0,0.5305382]
[1760167418446,0.0127,111340.0,111330.0,0.4408]
[1760167418644,0.0127,111340.0,111330.0,0.5305382]
[1760167419052,0.0127,111350.0,111340.0,0.0897302]
[1760167419351,0.0127,111350.0,111340.0,0.5705302]
[1760167420744,0.0127,111350.0,111340.0,0.3608]
[1760167421052,0.0134,111340.0,111330.0,0.450538]
[1760167421249,1.5134,111340.0,111330.0,0.3908]
[1760167421452,0.0134,111330.0,111320.0,0.4505424]
[1760167421653,0.0134,111330.0,111320.0,0.4805424]
[1760167422756,1.5134,111340.0,111330.0,0.0897382]
[1760167422949,1.5134,111340.0,111330.0,0.5905382]
[1760167423849,1.5134,111340.0,111330.0,0.5008]
[1760167424948,1.5134,111340.0,111330.0,0.5905382]
[1760167426056,1.5134,111340.0,111330.0,0.9905382]
[1760167426259,1.5134,111340.0,111330.0,0.5905382]
[1760167428055,1.5134,111340.0,111330.0,0.9905382]
[1760167428360,1.5134,111340.0,111330.0,0.5905382]
[1760167428850,1.5134,111340.0,111330.0,0.9905382]
[1760167429553,1.5134,111340.0,111330.0,0.5905382]
[1760167430252,1.5134,111340.0,111330.0,0.9905382]
[1760167430449,1.5,111340.0,111330.0,0.9905382]
[1760167430753,1.5,111340.0,111330.0,0.9970282]
[1760167430958,0.0134,111370.0,111360.0,0.089714]
[1760167431153,0.0134,111370.0,111360.0,0.851314]
[1760167431355,0.01326,111380.0,111370.0,0.089706]
[1760167431657,0.01326,111390.0,111380.0,0.0896979]
[1760167431857,0.01326,111390.0,111380.0,0.4904979]
[1760167432260,0.01326,111390.0,111380.0,0.1296979]
[1760167432463,0.41326,111390.0,111380.0,0.04]
[1760167432660,0.8637499,111390.0,111380.0,0.04]
[1760167432854,0.0896988,111380.0,111360.0,0.3608]
[1760167433055,0.01326,111370.0,111360.0,0.4008]
[1760167433455,0.01326,111370.0,111360.0,0.4905141]
[1760167433960,0.01326,111380.0,111370.0,0.089706]
[1760167434160,0.01326,111380.0,111370.0,0.560506]
[1760167434462,0.01326,111390.0,111380.0,0.089698]
[1760167434756,0.01326,111390.0,111380.0,0.06]
[1760167434950,0.01326,111390.0,111380.0,0.04]
[1760167434951,0.41326,111390.0,111380.0,0.04]
[1760167435154,0.77406,111390.0,111380.0,0.1096979]
[1760167435355,0.01326,111390.0,111380.0,0.05]
[1760167435654,0.37406,111390.0,111380.0,0.05]
[1760167435860,0.01326,111380.0,111370.0,0.0897023]
[1760167436060,0.01326,111380.0,111370.0,0.109706]
[1760167436360,0.37406,111390.0,111380.0,0.0896977]
[1760167436560,0.01326,111390.0,111380.0,0.5904977]
[1760167436958,0.01326,111390.0,111380.0,0.4804977]
[1760167437151,0.01326,111390.0,111380.0,0.4604977]
[1760167437555,0.05425728,111390.0,111380.0,0.4604977]
[1760167437760,0.01326,111380.0,111370.0,0.0897017]
[1760167437958,0.03136422,111380.0,111370.0,0.05]
[1760167438153,0.03618058,111380.0,111370.0,0.05]
[1760167438358,0.0542848,111380.0,111370.0,0.05]
[1760167438561,0.1439827,111380.0,111370.0,0.05]
[1760167438760,0.5439827,111380.0,111370.0,0.05]
[1760167438955,0.1439827,111380.0,111370.0,0.05]
[1760167439160,0.0542848,111380.0,111370.0,0.05]
[1760167439561,0.0542848,111380.0,111370.0,0.9005061]
[1760167440163,0.03618058,111380.0,111370.0,0.9005061]
[1760167440364,0.0542848,111380.0,111370.0,0.9005061]
[1760167440762,0.0542848,111380.0,111370.0,0.4108]
[1760167441063,0.0542848,111380.0,111370.0,0.05]
[1760167441064,0.9047828,111380.0,111370.0,0.05]
[1760167441264,0.01326,111370.0,111360.0,0.0897132]
[1760167441468,0.37406,111370.0,111360.0,0.2197132]
[1760167441768,0.39698058,111370.0,111360.0,0.13]
[1760167442360,0.01326,111380.0,111370.0,0.0897061]
[1760167442558,0.01326,111390.0,111380.0,0.089698]
[1760167442770,0.01326,111390.0,111380.0,0.450498]
[1760167442966,0.05431659,111390.0,111380.0,0.450498]
[1760167443866,0.03621237,111390.0,111380.0,0.450498]
[1760167444564,0.03621237,111390.0,111380.0,0.570498]
[1760167444769,0.01326,111390.0,111380.0,0.209698]
[1760167444967,0.01326,111390.0,111380.0,0.570498]
[1760167445162,0.01326,111390.0,111380.0,0.460498]
[1760167445360,0.01326,111390.0,111380.0,0.099698]
[1760167445564,0.01326,111390.0,111370.0,0.3608]
[1760167445565,0.01326,111380.0,111370.0,0.4505061]
[1760167445764,0.01326,111380.0,111370.0,0.4605061]
[1760167446968,0.01326,111360.0,111350.0,0.4505162]
[1760167447172,0.01326,111360.0,111350.0,0.4605162]
[1760167447663,0.5029741,111360.0,111350.0,0.3708]
[1760167447864,0.01326,111350.0,111340.0,0.3608]
[1760167448067,0.01326,111340.0,111330.0,0.3608]
[1760167448470,0.41326,111340.0,111330.0,0.3608]
[1760167448971,0.01326,111330.0,111310.0,0.45063268]
[1760167449268,0.01326,111330.0,111310.0,0.50063268]
[1760167449469,0.01326,111320.0,111310.0,0.50063578]
[1760167449670,0.01326,111340.0,111330.0,0.0897383]
[1760167449973,0.01326,111350.0,111340.0,0.0897302]
[1760167450166,0.01326,111350.0,111340.0,0.5705302]
[1760167450369,0.01326,111360.0,111350.0,0.0897222]